fUST/lending_fUST_20250618
["ID","MTS","AMOUNT","RATE_DAILY","PERIOD"]
[366362918,1750213832746,-463.7705976,0.00021917,6]
[366362919,1750213832758,-466.47984947,0.00021917,6]
[366362920,1750213832769,-434.04886794,0.00021917,6]
[366362921,1750213832779,-446.94124452,0.00021917,6]
[366362922,1750213832789,-442.04139921,0.00021917,6]
[366362923,1750213832798,-444.40509347,0.00021917,6]
[366362924,1750213832809,-441.61824625,0.00021917,6]
[366362925,1750213832818,-467.77457106,0.00021917,6]
[366362926,1750213832829,-467.97162197,0.00021917,6]
[366362927,1750213832839,-197.14982957,0.00021917,6]
[366362928,1750213832849,-467.3435986,0.00021917,6]
[366362929,1750213832859,-463.30694132,0.00021917,6]
[366362930,1750213832869,-460.0,0.00021917,6]
[366362931,1750213832879,-462.97428969,0.00021917,6]
[366362932,1750213832888,-466.71500479,0.00021917,6]
[366362933,1750213832898,-476.30538038,0.00021917,6]
[366362934,1750213832907,-423.26731077,0.00021917,6]
[366362935,1750213832917,-460.0,0.00021917,6]
[366362936,1750213832926,-460.0,0.00021917,6]
[366362937,1750213832936,-460.0,0.00021917,6]
[366362938,1750213832945,-460.0,0.00021917,6]
[366362939,1750213832954,-538.53,0.00021917,6]
[366362940,1750213832964,-460.0,0.00021917,6]
[366362941,1750213832973,-344.86486816,0.00021917,6]
[366362942,1750213832983,-422.10245189,0.00021917,6]
[366362943,1750213832992,-460.0,0.00021917,6]
[366362944,1750213833001,-460.0,0.00021917,6]
[366362945,1750213833011,-460.0,0.00021917,6]
[366362946,1750213833021,-460.0,0.00021917,6]
[366362947,1750213833032,-437.5326821,0.00021917,6]
[366362948,1750213833042,-340.62341306,0.00021917,6]
[366362949,1750213833052,-470.11147243,0.00021917,6]
[366362950,1750213833062,-449.85004588,0.00021917,6]
[366362951,1750213833072,-460.0,0.00021917,6]
[366362952,1750213833083,-460.0,0.00021917,6]
[366362953,1750213833093,-493.69,0.00021917,6]
[366362954,1750213833103,-460.0,0.00021917,6]
[366362955,1750213833113,-170.0,0.00021917,6]
[366362956,1750213833123,-460.0,0.00021917,6]
[366362957,1750213833133,-460.0,0.00021917,6]
[366362958,1750213833143,-460.0,0.00021917,6]
[366362959,1750213833153,-460.0,0.00021917,6]
[366362960,1750213833163,-460.0,0.00021917,6]
[366362961,1750213833173,-460.0,0.00021917,6]
[366362962,1750213833183,-460.0,0.00021917,6]
[366362963,1750213833193,-410.0,0.00021917,6]
[366362964,1750213833210,-440.24483131,0.00021917,6]
[366362965,1750213833220,-460.0,0.00021917,6]
[366362966,1750213833231,-390.0,0.00021917,6]
[366362967,1750213833240,-588.31,0.00021917,6]
[366362968,1750213833251,-460.0,0.00021917,6]
[366362969,1750213833261,-575.75222492,0.00021917,6]
[366362970,1750213833271,-460.0,0.00021917,6]
[366362971,1750213833280,-426.00776161,0.00021917,6]
[366362972,1750213833290,-460.0,0.00021917,6]
[366362973,1750213833300,-460.0,0.00021917,6]
[366362974,1750213833310,-460.0,0.00021917,6]
[366362975,1750213833320,-460.0,0.00021917,6]
[366362976,1750213833328,-460.0,0.00021917,6]
[366362977,1750213833337,-493.65078612,0.00021917,6]
[366362978,1750213833348,-390.0,0.00021917,6]
[366362979,1750213833359,-654.41,0.00021917,6]
[366362980,1750213833368,-460.0,0.00021917,6]
[366362981,1750213833378,-460.0,0.00021917,6]
[366362982,1750213833388,-460.0,0.00021917,6]
[366362983,1750213833398,-460.0,0.00021917,6]
[366362984,1750213833408,-460.0,0.00021917,6]
[366362985,1750213833419,-987.984,0.00021918,2]
[366362986,1750213833428,-174.0,0.00022,2]
[366362987,1750213833439,-329.0,0.00022003,2]
[366362988,1750213833448,-352.18854407,0.00022006,2]
[366362989,1750213833458,-460.0,0.00022027,6]
[366362990,1750213833469,-460.0,0.00022027,6]
[366362991,1750213833479,-460.0,0.00022027,6]
[366362992,1750213833489,-460.0,0.00022027,6]
[366362993,1750213833499,-383.34,0.00022027,6]
[366362994,1750213833509,-460.0,0.00022027,6]
[366362995,1750213833519,-460.0,0.00022027,6]
[366362996,1750213833529,-460.0,0.00022027,6]
[366362997,1750213833539,-460.0,0.00022027,6]
[366362998,1750213833549,-429.88540338,0.00022027,6]
[366362999,1750213833559,-460.0,0.00022027,6]
[366363000,1750213833569,-460.0,0.00022027,6]
[366363001,1750213833578,-460.0,0.00022027,6]
[366363002,1750213833588,-241.63,0.00022027,6]
[366363003,1750213833598,-654.41,0.00022027,6]
[366363004,1750213833607,-460.0,0.00022027,6]
[366363005,1750213833616,-460.0,0.00022027,6]
[366363006,1750213833626,-460.0,0.00022027,6]
[366363007,1750213833636,-329.0,0.00022057,2]
[366363008,1750213833645,-290.0,0.00022133,2]
[366363009,1750213833655,-460.0,0.00022136,6]
[366363010,1750213833665,-460.0,0.00022136,6]
[366363011,1750213833675,-460.0,0.00022136,6]
[366363012,1750213833686,-156.05,0.00022136,6]
[366363013,1750213833696,-387.7673478,0.00022136,6]
[366363014,1750213833706,-460.0,0.00022136,6]
[366363015,1750213833716,-460.0,0.00022136,6]
[366363016,1750213833725,-654.41,0.00022136,6]
[366363017,1750213833735,-460.0,0.00022136,6]
[366363018,1750213833744,-460.0,0.00022136,6]
[366363019,1750213833754,-460.0,0.00022136,6]
[366363020,1750213833764,-523.12757653,0.00022169,2]
[366363021,1750213833773,-501.09549923,0.00022169,2]
[366363022,1750213833783,-502.16522696,0.00022169,2]
[366363023,1750213833793,-290.0,0.0002217,2]
[366363024,1750213833804,-500.0,0.00022242,2]
[366363025,1750213833815,-163.14633147,0.00022246,6]
[366363026,1750213833826,-248.63,0.00022246,6]
[366363027,1750213833836,-460.0,0.00022246,6]
[366363028,1750213833847,-330.49,0.00022246,6]
[366363029,1750213833858,-654.41,0.00022246,6]
[366363030,1750213833868,-393.77,0.00022246,6]
[366363031,1750213833878,-460.0,0.00022246,6]
[366363032,1750213833888,-460.0,0.00022246,6]
[366363033,1750213833899,-508.11809492,0.00022255,2]
[366363034,1750213833909,-445.51293244,0.00022255,2]
[366363035,1750213833920,-504.04814432,0.00022255,2]
[366363036,1750213833930,-506.71696913,0.00022255,2]
[366363037,1750213833940,-504.15296163,0.00022255,2]
[366363038,1750213833950,-460.0,0.00022356,6]
[366363039,1750213833960,-654.41,0.00022356,6]
[366363040,1750213833970,-460.0,0.00022356,6]
[366363041,1750213833979,-562.18,0.00022356,6]
[366363042,1750213833990,-503.9521229,0.0002236,2]
[366363043,1750213834000,-500.0,0.00022364,2]
[366363044,1750213834010,-501.73430404,0.00022462,2]
[366363045,1750213834020,-460.0,0.00022465,6]
[366363046,1750213834030,-654.41,0.00022465,6]
[366363047,1750213834040,-460.0,0.00022465,6]
[366363048,1750213834050,-478.25993787,0.00022474,2]
[366363049,1750213834060,-503.57754746,0.00022474,2]
[366363050,1750213834070,-529.289144,0.00022481,6]
[366363051,1750213834079,-529.289144,0.00022516,13]
[366363052,1750213834091,-529.289144,0.00022551,5]
[366363053,1750213834101,-460.0,0.00022575,6]
[366363054,1750213834111,-654.41,0.00022575,6]
[366363055,1750213834121,-460.0,0.00022575,6]
[366363056,1750213834130,-529.289144,0.00022587,14]
[366363057,1750213834140,-529.289144,0.00022622,7]
[366363058,1750213834150,-529.289144,0.00022657,6]
[366363059,1750213834160,-460.0,0.00022684,6]
[366363060,1750213834170,-654.41,0.00022684,6]
[366363061,1750213834310,-460.0,0.00022684,6]
[366363062,1750213834321,-529.289144,0.00022693,13]
[366363063,1750213834331,-529.289144,0.00022728,6]
[366363064,1750213834341,-529.289144,0.00022763,14]
[366363065,1750213834354,-5070.81207343,0.0002277,2]
[366363066,1750213834363,-151.93682893,0.0002277,2]
[366363067,1750213834373,-207.4,0.0002277,2]
[366363068,1750213834383,-500.0,0.0002277,2]
[366363069,1750213834392,-500.0,0.0002277,2]
[366363070,1750213834402,-500.0,0.0002277,2]
[366363071,1750213834412,-500.0,0.0002277,2]
[366363072,1750213834421,-500.0,0.0002277,2]
[366363073,1750213834433,-500.0,0.0002277,2]
[366363074,1750213834443,-500.0,0.0002277,2]
[366363075,1750213834452,-500.0,0.0002277,2]
[366363076,1750213834462,-500.0,0.0002277,2]
[366363077,1750213834471,-500.0,0.0002277,2]
[366363078,1750213834481,-500.0,0.0002277,2]
[366363079,1750213834490,-500.0,0.0002277,2]
[366363080,1750213834503,-500.0,0.0002277,2]
[366363081,1750213834513,-500.0,0.0002277,2]
[366363082,1750213834523,-565.65676755,0.0002277,2]
[366363083,1750213834532,-151.0,0.0002277,2]
[366363084,1750213834542,-151.0,0.0002277,2]
[366363085,1750213834551,-151.0,0.0002277,2]
[366363086,1750213834561,-276.18501917,0.0002277,2]
[366363087,1750213834571,-221.8437626,0.0002277,2]
[366363088,1750213834586,-2259.82165184,0.0002277,2]
[366363089,1750213834596,-460.0,0.00022794,6]
[366363090,1750213834605,-654.41,0.00022794,6]
[366363091,1750213834615,-276.3896,0.00022794,6]
[366363092,1750213834625,-529.289144,0.00022798,9]
[366363093,1750213834634,-529.289144,0.00022834,2]
[366363094,1750213834644,-529.289144,0.00022869,8]
[366363095,1750213834654,-206.60101016,0.000229,8]
[366363096,1750213834664,-460.0,0.00022904,6]
[366363097,1750213834674,-654.41,0.00022904,6]
[366363098,1750213834683,-529.289144,0.00022904,2]
[366363099,1750213834693,-1000.0,0.00022912,2]
[366363100,1750213834703,-529.289144,0.0002294,6]
[366363101,1750213834713,-529.289144,0.00022975,8]
[366363102,1750213834722,-248.94236736,0.00023,2]
[366363103,1750213834731,-37016.86534165,0.00023,2]
[366363104,1750213834741,-529.289144,0.0002301,13]
[366363105,1750213834750,-460.0,0.00023013,6]
[366363106,1750213834759,-654.41,0.00023013,6]
[366363107,1750213834769,-529.289144,0.00023046,13]
[366363108,1750213834780,-150.0,0.00023055,2]
[366363109,1750213834791,-206.60101016,0.00023067,8]
[366363110,1750213834801,-529.289144,0.00023081,8]
[366363111,1750213834810,-290.0,0.00023113,2]
[366363112,1750213834820,-529.289144,0.00023116,12]
[366363113,1750213834829,-460.0,0.00023123,6]
[366363114,1750213834839,-654.41,0.00023123,6]
[366363115,1750213834848,-529.289144,0.00023152,8]
[366363116,1750213834858,-5000.0,0.00023168,2]
[366363117,1750213834868,-529.289144,0.00023187,6]
[366363118,1750213834877,-529.289144,0.00023222,6]
[366363119,1750213834887,-500.0,0.00023227,2]
[366363120,1750213834897,-365.47097846,0.00023232,6]
[366363128,1750213838384,-500.0,0.00022999,2]
[366363129,1750213838394,-500.0,0.00022999,2]
[366363130,1750213838403,-285.71076593,0.00022999,2]
[366363131,1750213838412,-500.0,0.00022999,2]
[366363132,1750213838421,-500.0,0.00022999,2]
[366363133,1750213838430,-530.9896746,0.00022999,2]
[366363134,1750213838440,-500.0,0.00022999,2]
[366363135,1750213838449,-500.0,0.00022999,2]
[366363136,1750213838458,-500.0,0.00022999,2]
[366363137,1750213838467,-94.52902154,0.00023232,6]
[366363138,1750213838477,-654.41,0.00023232,6]
[366363139,1750213838486,-195.5526609,0.00023233,2]
[366363140,1750213838495,-206.60101016,0.00023233,8]
[366363141,1750213838505,-529.289144,0.00023257,12]
[366363142,1750213838514,-529.289144,0.00023293,14]
[366363143,1750213838523,-213.43818883,0.00023294,2]
[366363144,1750213838532,-845.78193577,0.00023294,2]
[366363145,1750213838542,-529.289144,0.00023328,14]
[366363146,1750213838551,-460.0,0.00023342,6]
[366363147,1750213838560,-654.41,0.00023342,6]
[366363148,1750213838570,-529.289144,0.00023363,12]
[366363149,1750213838579,-529.289144,0.00023399,14]
[366363150,1750213838588,-206.60101016,0.000234,9]
[366363151,1750213838597,-529.289144,0.00023434,13]
[366363152,1750213838607,-460.0,0.00023452,6]
[366363153,1750213838616,-654.41,0.00023452,6]
[366363154,1750213838626,-527.92733511,0.0002346,2]
[366363155,1750213838635,-529.289144,0.00023469,8]
[366363156,1750213838644,-290.0,0.0002349,2]
[366363157,1750213838654,-161.14812805,0.000235,5]
[366363158,1750213838663,-529.289144,0.00023505,6]
[366363159,1750213838673,-719.291027,0.0002352,3]
[366363160,1750213838683,-529.289144,0.0002354,9]
[366363161,1750213838693,-1760.0,0.00023551,2]
[366363162,1750213838702,-460.0,0.00023561,6]
[366363163,1750213838711,-654.41,0.00023561,6]
[366363164,1750213838721,-151.0,0.00023562,6]
[366363165,1750213838731,-151.0,0.00023562,6]
[366363166,1750213838740,-154.18660214,0.00023562,6]
[366363167,1750213838749,-154.28687852,0.00023562,6]
[366363168,1750213838758,-152.11636509,0.00023562,6]
[366363169,1750213838768,-206.60101016,0.00023567,9]
[366363170,1750213838777,-529.289144,0.00023575,12]
[366363171,1750213838787,-151.0,0.00023589,6]
[366363172,1750213838797,-151.0,0.00023589,6]
[366363173,1750213838806,-168.0,0.00023609,2]
[366363174,1750213838815,-529.289144,0.00023611,6]
[366363175,1750213838825,-151.0,0.00023617,6]
[366363176,1750213838834,-151.0,0.00023617,6]
[366363177,1750213838843,-21.5166203,0.00023644,6]
[366363178,1750213838978,-131.4802994,0.00023644,6]
[366363179,1750213838987,-160.37628921,0.00023644,6]
[366363180,1750213838997,-529.289144,0.00023646,9]
[366363181,1750213839006,-168.0,0.00023669,2]
[366363182,1750213839016,-460.0,0.00023671,6]
[366363183,1750213839026,-654.41,0.00023671,6]
[366363184,1750213839036,-529.289144,0.00023681,9]
[366363185,1750213839045,-365.5483814,0.00023699,2]
[366363186,1750213839054,-121.96124082,0.00023699,2]
[366363187,1750213839066,-243.58714058,0.00023699,2]
[366363188,1750213839076,-365.5483814,0.00023699,2]
[366363189,1750213839085,-365.5483814,0.00023699,2]
[366363190,1750213839094,-365.5483814,0.00023699,2]
[366363191,1750213839104,-365.5483814,0.00023699,2]
[366363192,1750213839113,-365.5483814,0.00023699,2]
[366363193,1750213839123,-529.289144,0.00023716,5]
[366363194,1750213839132,-206.60101016,0.00023733,9]
[366363195,1750213839142,-529.289144,0.00023752,2]
[366363196,1750213839152,-168.0,0.00023774,2]
[366363197,1750213839162,-460.0,0.0002378,6]
[366363198,1750213839171,-654.41,0.0002378,6]
[366363199,1750213839181,-529.289144,0.00023787,6]
[366363200,1750213839191,-158.63825,0.000238,2]
[366363201,1750213839201,-420.0,0.00023817,2]
[366363202,1750213839210,-529.289144,0.00023822,14]
[366363203,1750213839220,-529.289144,0.00023858,7]
[366363204,1750213839230,-460.0,0.0002389,6]
[366363205,1750213839239,-654.41,0.0002389,6]
[366363206,1750213839248,-529.289144,0.00023893,2]
[366363207,1750213839258,-431.57863852,0.00023894,2]
[366363208,1750213839267,-160.0,0.00023899,2]
[366363209,1750213839276,-6898.42580576,0.000239,2]
[366363210,1750213839286,-4761.07916454,0.000239,2]
[366363211,1750213839295,-166.0,0.000239,7]
[366363212,1750213839304,-238.58985851,0.000239,5]
[366363213,1750213839314,-15023.52570334,0.000239,7]
[366363214,1750213839324,-234.78563938,0.000239,2]
[366363215,1750213839334,-355.56440823,0.000239,3]
[366363216,1750213839343,-206.60101016,0.000239,10]
[366363217,1750213839356,-529.289144,0.00023928,13]
[366363218,1750213839366,-529.289144,0.00023964,14]
[366363219,1750213839375,-166.0,0.00023968,3]
[366363220,1750213839385,-203.98575188,0.00023968,3]
[366363221,1750213839394,-166.0,0.00023968,3]
[366363222,1750213839404,-1747.0,0.00023968,3]
[366363223,1750213839413,-1747.0,0.00023968,3]
[366363224,1750213839423,-166.0,0.00023968,3]
[366363225,1750213839435,-1747.0,0.00023968,3]
[366363226,1750213839444,-166.0,0.00023968,3]
[366363227,1750213839453,-166.0,0.00023968,3]
[366363228,1750213839463,-1747.0,0.00023968,3]
[366363229,1750213839473,-166.0,0.00023968,3]
[366363230,1750213839482,-166.0,0.00023968,3]
[366363231,1750213839492,-1747.0,0.00023968,3]
[366363232,1750213839502,-166.0,0.00023968,3]
[366363233,1750213839511,-166.0,0.00023968,3]
[366363234,1750213839521,-1747.0,0.00023968,3]
[366363235,1750213839530,-166.0,0.00023968,3]
[366363236,1750213839540,-166.0,0.00023968,3]
[366363237,1750213839549,-600.51528584,0.00023968,3]
[366363238,1750213839558,-166.0,0.00023968,3]
[366363239,1750213839567,-166.0,0.00023968,3]
[366363240,1750213839576,-172.0,0.00023968,3]
[366363241,1750213839586,-166.0,0.00023968,3]
[366363242,1750213839595,-317.0,0.00023968,3]
[366363243,1750213839605,-317.0,0.00023968,3]
[366363244,1750213839614,-317.0,0.00023968,3]
[366363245,1750213839623,-317.0,0.00023968,3]
[366363246,1750213839633,-350.98116314,0.00023968,3]
[366363247,1750213839642,-500.0,0.00023973,2]
[366363248,1750213839651,-500.0,0.00023973,2]
[366363249,1750213839660,-500.0,0.00023973,2]
[366363250,1750213839671,-600.0,0.00023973,2]
[366363251,1750213839680,-500.0,0.00023973,2]
[366363252,1750213839689,-501.70901875,0.00023973,2]
[366363253,1750213839698,-500.0,0.00023973,2]
[366363254,1750213839708,-500.16134364,0.00023973,2]
[366363255,1750213839717,-501.54414401,0.00023973,2]
[366363256,1750213839727,-500.0,0.00023973,2]
[366363257,1750213839736,-835.82910252,0.00023986,2]
[366363258,1750213839745,-424.62582665,0.00023986,2]
[366363259,1750213839755,-160.0,0.00023986,2]
[366363260,1750213839764,-229.94211981,0.00023987,2]
[366363261,1750213839774,-529.289144,0.00023999,8]
[366363262,1750213839783,-35671.45542631,0.00024,7]
[366363263,1750213839795,-801.91583116,0.00024,7]
[366363276,1750213840615,-1626.53407425,0.00024,7]
[366363332,1750214398719,5000.0,0.00025153,120]
[366363333,1750214459844,162.240238,0.00013699,2]
[366363336,1750214752103,-1733.08465642,0.00019777,2]
[366363337,1750214829128,-2135.45869869,0.00019777,2]
[366363338,1750214837081,-630.83357798,0.00019777,2]
[366363339,1750214850093,-500.62306691,0.00019777,2]
[366363340,1750214850114,-364.2,0.00020047,2]
[366363341,1750214850137,-728.41,0.00021869,2]
[366363342,1750214850160,-150.0,0.000219,2]
[366363343,1750214850190,-208.29848025,0.000219,6]
[366363344,1750214850212,-300.0,0.00021916,2]
[366363345,1750214850234,-193.0,0.00021916,2]
[366363346,1750214850255,-431.45066727,0.00021917,6]
[366363347,1750214850276,-394.04909701,0.00021917,6]
[366363348,1750214850296,-394.24765437,0.00021917,6]
[366363349,1750214850317,-370.72228711,0.00021917,6]
[366363350,1750214850338,-198.15148337,0.00021917,6]
[366363351,1750214850358,-222.25492853,0.00021917,6]
[366363352,1750214947106,-4899.4133859,0.00019579,2]
[366363353,1750214947145,-100.5866141,0.00019579,2]
[366363354,1750214947167,-350.3,0.00020018,2]
[366363355,1750214947193,-208.29848014,0.000209,4]
[366363356,1750214947219,-208.29848014,0.00021355,5]
[366363357,1750214955330,1732.84367276,0.00021591,2]
[366363358,1750214996722,345.84,0.00020018,2]
[366363366,1750215032553,-208.29848014,0.00021809,6]
[366363367,1750215032564,-691.68,0.00021838,2]
[366363368,1750215032573,-3192.11381245,0.00021917,2]
[366363369,1750215032584,-2112.82290526,0.00021917,2]
[366363370,1750215032607,-407.96641018,0.00021917,2]
[366363371,1750215032618,-1249.27644259,0.00021917,2]
[366363372,1750215032631,-1441.4662025,0.00021917,2]
[366363373,1750215032640,-133.00873428,0.00021917,6]
[366363374,1750215032650,-459.87659794,0.00021917,6]
[366363375,1750215032659,-460.0,0.00021917,6]
[366363376,1750215032669,-426.31360367,0.00021917,6]
[366363377,1750215032677,-400.0,0.00021917,6]
[366363378,1750215032687,-416.63014132,0.00021917,6]
[366363379,1750215032696,-460.0,0.00021917,6]
[366363380,1750215032706,-460.0,0.00021917,6]
[366363381,1750215032715,-342.70472029,0.00021917,6]
[366363388,1750215038438,-79.32998925,0.00021917,6]
[366363389,1750215038449,-366.11634467,0.00021917,6]
[366363390,1750215038462,-17.43508074,0.00021917,6]
[366363391,1750215038472,-365.44994683,0.00021917,6]
[366363392,1750215038482,-367.41197243,0.00021917,6]
[366363393,1750215038495,-412.50151917,0.00021917,6]
[366363394,1750215038504,-431.91050778,0.00021917,6]
[366363395,1750215038514,-404.04345179,0.00021917,6]
[366363396,1750215038523,-460.0,0.00021917,6]
[366363397,1750215038534,-454.15390702,0.00021917,6]
[366363398,1750215038545,-427.64206306,0.00021917,6]
[366363399,1750215038554,-468.55778989,0.00021917,6]
[366363400,1750215038575,-468.67106121,0.00021917,6]
[366363401,1750215038585,-440.0,0.00021917,6]
[366363402,1750215038595,-158.4,0.00021917,6]
[366363403,1750215038605,-460.0,0.00021917,6]
[366363404,1750215038614,-460.0,0.00021917,6]
[366363405,1750215038623,-440.0,0.00021917,6]
[366363406,1750215038633,-166.90869552,0.00021917,6]
[366363407,1750215038642,-460.0,0.00021917,6]
[366363408,1750215038651,-444.58362983,0.00021917,6]
[366363409,1750215038661,-450.7826927,0.00021917,6]
[366363410,1750215038670,-460.0,0.00021917,6]
[366363411,1750215038680,-460.0,0.00021917,6]
[366363412,1750215038690,-460.0,0.00021917,6]
[366363413,1750215038699,-460.0,0.00021917,6]
[366363414,1750215038708,-373.4423546,0.00021917,6]
[366363415,1750215038718,-460.0,0.00021917,6]
[366363416,1750215038727,-181.21,0.00022027,6]
[366363417,1750215038738,-331.92,0.00022027,6]
[366363418,1750215038748,-460.0,0.00022027,6]
[366363419,1750215038758,-460.0,0.00022027,6]
[366363420,1750215038768,-460.0,0.00022136,6]
[366363421,1750215038778,-460.0,0.00022136,6]
[366363422,1750215038787,-167.4540808,0.00022146,2]
[366363423,1750215038797,-460.0,0.00022246,6]
[366363424,1750215038806,-460.0,0.00022246,6]
[366363425,1750215038815,-208.29848014,0.00022264,6]
[366363426,1750215038825,-200.63387677,0.00022356,6]
[366363427,1750215038838,-460.0,0.00022356,6]
[366363428,1750215038847,-500.0,0.00022462,2]
[366363429,1750215038856,-500.0,0.00022462,2]
[366363430,1750215038866,-500.0,0.00022462,2]
[366363431,1750215038876,-500.0,0.00022462,2]
[366363432,1750215038886,-500.0,0.00022462,2]
[366363433,1750215038896,-590.36997484,0.00022462,2]
[366363434,1750215038905,-500.0,0.00022462,2]
[366363435,1750215038917,-500.0,0.00022462,2]
[366363436,1750215038928,-500.0,0.00022462,2]
[366363437,1750215038938,-500.0,0.00022462,2]
[366363438,1750215038948,-500.0,0.00022462,2]
[366363439,1750215038959,-500.0,0.00022462,2]
[366363440,1750215038969,-500.0,0.00022462,2]
[366363441,1750215038979,-345.30132793,0.00022462,2]
[366363442,1750215038988,-500.0,0.00022462,2]
[366363443,1750215038997,-556.45455257,0.00022462,2]
[366363444,1750215039007,-401.930331,0.00022462,2]
[366363445,1750215039017,-380.50611407,0.00022462,2]
[366363446,1750215039026,-500.0,0.00022462,2]
[366363447,1750215039036,-500.0,0.00022462,2]
[366363448,1750215039046,-257.62897852,0.00022462,2]
[366363449,1750215039055,-460.0,0.00022465,6]
[366363450,1750215039065,-512.28994943,0.00022575,6]
[366363451,1750215039075,-167.45408076,0.00022631,2]
[366363452,1750215039084,-208.29848014,0.00022718,7]
[366363453,1750215039093,-365.5483814,0.0002274,2]
[366363454,1750215039103,-231.6907835,0.00022741,2]
[366363455,1750215039112,-207.4,0.0002277,2]
[366363456,1750215039122,-160.0,0.00022798,2]
[366363457,1750215039131,-167.45408076,0.00023115,2]
[366363458,1750215039141,-208.29848014,0.00023173,8]
[366363459,1750215039150,-175.102,0.00023233,3]
[366363460,1750215039160,-177.414,0.00023233,3]
[366363461,1750215039171,-229.98435572,0.00023251,2]
[366363462,1750215039180,-213.43818883,0.00023251,2]
[366363463,1750215039190,-845.78193577,0.00023251,2]
[366363464,1750215039200,-835.98428123,0.00023251,2]
[366363465,1750215039210,-424.70586748,0.00023251,2]
[366363466,1750215039220,-276.0,0.0002335,2]
[366363467,1750215039231,-616.535166,0.0002352,3]
[366363468,1750215039241,-167.45408076,0.000236,2]
[366363469,1750215039251,-208.29848014,0.00023627,9]
[366363470,1750215039261,-1037.52,0.00023658,2]
[366363471,1750215039271,-649.54701501,0.00023973,2]
[366363472,1750215039429,-500.14353364,0.00023973,2]
[366363473,1750215039440,-500.0,0.00023973,2]
[366363474,1750215039450,-600.0,0.00023973,2]
[366363475,1750215039459,-500.0,0.00023973,2]
[366363476,1750215039469,-500.0,0.00023973,2]
[366363477,1750215039479,-500.0,0.00023973,2]
[366363478,1750215039488,-502.12322891,0.00023973,2]
[366363479,1750215039498,-500.0,0.00023973,2]
[366363480,1750215039507,-500.85594764,0.00023973,2]
[366363481,1750215039517,-14414.3444259,0.00023986,2]
[366363482,1750215039527,-500.0,0.00023999,2]
[366363483,1750215039536,-500.0,0.00023999,2]
[366363484,1750215039546,-199.99753616,0.00023999,2]
[366363485,1750215039556,-500.0,0.00023999,2]
[366363486,1750215039565,-500.0,0.00023999,2]
[366363487,1750215039575,-500.0,0.00023999,2]
[366363488,1750215039585,-500.0,0.00023999,2]
[366363489,1750215039594,-177.37963949,0.00023999,2]
[366363490,1750215039604,-3449.21290288,0.00024,2]
[366363491,1750215039614,-4297.3318438,0.00024,2]
[366363492,1750215039624,-404941.11185809,0.00024,7]
[366363493,1750215039632,-202.43673406,0.00024,2]
[366363494,1750215039642,-151.75968585,0.00024,2]
[366363495,1750215039652,-5042.18358024,0.00024,4]
[366363496,1750215039661,-2561.92,0.00024,7]
[366363497,1750215039671,-5502.0,0.00024,7]
[366363498,1750215039680,-595.82,0.00024,7]
[366363499,1750215039689,-83454.84229231,0.00024,7]
[366363500,1750215039702,-1840.97628963,0.00024,7]
[366363501,1750215039713,-4587.55141806,0.00024,7]
[366363502,1750215039722,-166.0,0.00024,7]
[366363503,1750215039731,-3000.0,0.00024,2]
[366363504,1750215039740,-160.0,0.00024,3]
[366363505,1750215039749,-236.90860629,0.00024,60]
[366363506,1750215039759,-229.98435572,0.00024,3]